[Event "*** Titled Tuesday Blitz"]
[Site "Chess.com"]
[Date "2020.05.19"]
[Round "10"]
[White "petrkostenko"]
[Black "Goryachkina"]
[Result "0-1"]
[WhiteElo "2535"]
[BlackElo "2662"]
[TimeControl "180+1"]
[EndTime "13:57:18 PDT"]
[Termination "Goryachkina won by resignation"]

1. e4 {[%clk 0:01:02]} 1... e6 {[%clk 0:02:58.5]} 2. d4 {[%clk 0:01:01.2]} 2...
d5 {[%clk 0:02:58.7]} 3. Nc3 {[%clk 0:01:00.1]} 3... Bb4 {[%clk 0:02:58]} 4.
exd5 {[%clk 0:01:00.2]} 4... exd5 {[%clk 0:02:57.4]} 5. Bd3 {[%clk 0:01:00.8]}
5... Nf6 {[%clk 0:02:53.5]} 6. Ne2 {[%clk 0:00:58.3]} 6... O-O {[%clk
0:02:53.2]} 7. O-O {[%clk 0:00:58.1]} 7... Bg4 {[%clk 0:02:47.3]} 8. f3 {[%clk
0:00:56.2]} 8... Bh5 {[%clk 0:02:47.2]} 9. Nf4 {[%clk 0:00:56.1]} 9... c6 {[%clk
0:02:40.9]} 10. Nce2 {[%clk 0:00:53.7]} 10... Bd6 {[%clk 0:02:36.7]} 11. Nxh5
{[%clk 0:00:48.4]} 11... Nxh5 {[%clk 0:02:36]} 12. g3 {[%clk 0:00:43]} 12... Nd7
{[%clk 0:02:32.7]} 13. c3 {[%clk 0:00:42.6]} 13... Re8 {[%clk 0:02:31.3]} 14.
Qc2 {[%clk 0:00:42.3]} 14... Nf8 {[%clk 0:02:31.1]} 15. Bd2 {[%clk 0:00:37.1]}
15... Qc7 {[%clk 0:02:19.5]} 16. Kg2 {[%clk 0:00:35.9]} 16... Re7 {[%clk
0:02:16.9]} 17. Rae1 {[%clk 0:00:35.2]} 17... Rae8 {[%clk 0:02:16.3]} 18. Bc1
{[%clk 0:00:34.4]} 18... g6 {[%clk 0:02:10.4]} 19. f4 {[%clk 0:00:33.2]} 19...
f5 {[%clk 0:02:07.6]} 20. Qd1 {[%clk 0:00:31.6]} 20... Nf6 {[%clk 0:02:06]} 21.
Ng1 {[%clk 0:00:31.6]} 21... Rxe1 {[%clk 0:01:52.1]} 22. Rxe1 {[%clk 0:00:31.2]}
22... Rxe1 {[%clk 0:01:52.7]} 23. Qxe1 {[%clk 0:00:30.6]} 23... Ne4 {[%clk
0:01:52.7]} 24. Nf3 {[%clk 0:00:30.4]} 24... Ne6 {[%clk 0:01:46.6]} 25. Be3
{[%clk 0:00:29.9]} 25... a5 {[%clk 0:01:28.9]} 26. a3 {[%clk 0:00:22.7]} 26...
Qb6 {[%clk 0:01:24.2]} 27. Qc1 {[%clk 0:00:20.8]} 27... Qb3 {[%clk 0:01:17.7]}
28. Qc2 {[%clk 0:00:20.9]} 28... Qb6 {[%clk 0:01:14.3]} 29. c4 {[%clk
0:00:20.1]} 29... Bf8 {[%clk 0:01:08.4]} 30. h3 {[%clk 0:00:18.5]} 30... Bg7
{[%clk 0:01:05.1]} 31. c5 {[%clk 0:00:17.8]} 31... Qd8 {[%clk 0:01:03]} 32. Qa4
{[%clk 0:00:16.7]} 32... h6 {[%clk 0:00:52.8]} 33. b4 {[%clk 0:00:16.4]} 33...
axb4 {[%clk 0:00:52.5]} 34. axb4 {[%clk 0:00:16.3]} 34... g5 {[%clk 0:00:51.8]}
35. fxg5 {[%clk 0:00:14.6]} 35... hxg5 {[%clk 0:00:51.4]} 36. Qa7 {[%clk
0:00:14]} 36... f4 {[%clk 0:00:47.7]} 37. gxf4 {[%clk 0:00:12.6]} 37... gxf4
{[%clk 0:00:43.1]} 38. Bg1 {[%clk 0:00:12.4]} 38... Qe8 {[%clk 0:00:34.5]} 39.
Bh2 {[%clk 0:00:11.5]} 39... Qg6+ {[%clk 0:00:33.9]} 40. Kf1 {[%clk 0:00:10.4]}
40... Ng3+ {[%clk 0:00:33]} 41. Bxg3 {[%clk 0:00:10.5]} 41... Qxd3+ {[%clk
0:00:33]} 42. Kg2 {[%clk 0:00:11.1]} 42... fxg3 {[%clk 0:00:33]} 43. Kxg3 {[%clk
0:00:11]} 43... Nxd4 {[%clk 0:00:32]} 44. Qb8+ {[%clk 0:00:11.1]} 44... Kh7
{[%clk 0:00:31.6]} 0-1

[Event "*** Titled Tuesday Blitz"]
[Site "Chess.com"]
[Date "2020.05.19"]
[Round "10"]
[White "parmupill123"]
[Black "Mr_Sinigami"]
[Result "0-1"]
[WhiteElo "2409"]
[BlackElo "2571"]
[TimeControl "180+1"]
[EndTime "13:57:19 PDT"]
[Termination "Mr_Sinigami won by resignation"]

1. e4 {[%clk 0:03:00.9]} 1... c5 {[%clk 0:02:58.2]} 2. Nc3 {[%clk 0:02:59]} 2...
Nc6 {[%clk 0:02:57]} 3. g3 {[%clk 0:02:56.6]} 3... g6 {[%clk 0:02:56.6]} 4. Bg2
{[%clk 0:02:57.1]} 4... Bg7 {[%clk 0:02:56.9]} 5. d3 {[%clk 0:02:57.7]} 5... e6
{[%clk 0:02:57]} 6. Be3 {[%clk 0:02:57.3]} 6... Nd4 {[%clk 0:02:56.3]} 7. f4
{[%clk 0:02:50.2]} 7... Ne7 {[%clk 0:02:53.7]} 8. Nf3 {[%clk 0:02:49]} 8... O-O
{[%clk 0:02:49.9]} 9. O-O {[%clk 0:02:47.2]} 9... d6 {[%clk 0:02:49.5]} 10. e5
{[%clk 0:02:46.8]} 10... Nef5 {[%clk 0:02:30.6]} 11. Bf2 {[%clk 0:02:41.3]}
11... Qe7 {[%clk 0:02:28]} 12. exd6 {[%clk 0:02:24.5]} 12... Qxd6 {[%clk
0:02:27.5]} 13. Ne4 {[%clk 0:02:23.6]} 13... Qc7 {[%clk 0:02:22.9]} 14. c3
{[%clk 0:02:18.8]} 14... Nxf3+ {[%clk 0:02:14.4]} 15. Bxf3 {[%clk 0:02:19.7]}
15... c4 {[%clk 0:02:06.2]} 16. d4 {[%clk 0:02:01.2]} 16... Rb8 {[%clk
0:02:04.2]} 17. g4 {[%clk 0:02:00.7]} 17... Ne7 {[%clk 0:01:54.5]} 18. f5 {[%clk
0:01:48]} 18... exf5 {[%clk 0:01:50.1]} 19. Bg3 {[%clk 0:01:37.8]} 19... f4
{[%clk 0:01:49.7]} 20. Bh4 {[%clk 0:01:37.3]} 20... Nd5 {[%clk 0:01:46.5]} 21.
Qd2 {[%clk 0:01:33.3]} 21... Be6 {[%clk 0:01:38.5]} 22. Nc5 {[%clk 0:01:23.9]}
22... Ne3 {[%clk 0:01:32.8]} 23. Rfe1 {[%clk 0:01:19.6]} 23... Bxg4 {[%clk
0:01:30]} 24. Bxg4 {[%clk 0:01:16.3]} 24... Nxg4 {[%clk 0:01:29.3]} 25. Re7
{[%clk 0:01:16]} 25... Qd6 {[%clk 0:01:14.5]} 26. Rd7 {[%clk 0:00:50.7]} 26...
Qc6 {[%clk 0:00:55.7]} 27. Qxf4 {[%clk 0:00:48.5]} 27... Ne5 {[%clk 0:00:26.7]}
28. Re7 {[%clk 0:00:37.2]} 28... Nf3+ {[%clk 0:00:26]} 29. Kf2 {[%clk
0:00:34.9]} 29... Nxh4 {[%clk 0:00:25.7]} 30. Nd7 {[%clk 0:00:22.9]} 30... Rbd8
{[%clk 0:00:19]} 31. Nxf8 {[%clk 0:00:22.4]} 31... Rxf8 {[%clk 0:00:17.3]} 32.
Rc7 {[%clk 0:00:16.8]} 32... Qb6 {[%clk 0:00:16.3]} 33. Re1 {[%clk 0:00:11.8]}
33... Nf5 {[%clk 0:00:15.1]} 34. Re2 {[%clk 0:00:10.9]} 34... Bh6 {[%clk
0:00:14.4]} 35. Qe5 {[%clk 0:00:09.6]} 35... Bg7 {[%clk 0:00:13.8]} 36. Qf4
{[%clk 0:00:09.5]} 36... h5 {[%clk 0:00:12.4]} 37. Rxc4 {[%clk 0:00:08.7]} 37...
Qf6 {[%clk 0:00:09.9]} 38. Rc5 {[%clk 0:00:08]} 38... Bh6 {[%clk 0:00:09.7]} 39.
Qf3 {[%clk 0:00:07.5]} 39... Qh4+ {[%clk 0:00:09.5]} 40. Kg2 {[%clk 0:00:06.8]}
40... Qg5+ {[%clk 0:00:09.2]} 41. Kh1 {[%clk 0:00:06.4]} 41... Qc1+ {[%clk
0:00:08.5]} 42. Kg2 {[%clk 0:00:06.7]} 42... Nh4+ {[%clk 0:00:08.4]} 0-1

[Event "*** Titled Tuesday Blitz"]
[Site "Chess.com"]
[Date "2020.05.19"]
[Round "10"]
[White "guillembaches"]
[Black "Kildepiotr"]
[Result "1/2-1/2"]
[WhiteElo "2438"]
[BlackElo "2574"]
[TimeControl "180+1"]
[EndTime "13:57:20 PDT"]
[Termination "Game drawn by repetition"]

1. e4 {[%clk 0:03:00.9]} 1... e6 {[%clk 0:02:59.8]} 2. Nf3 {[%clk 0:03:01]} 2...
d5 {[%clk 0:03:00]} 3. exd5 {[%clk 0:03:01.9]} 3... exd5 {[%clk 0:03:00.2]} 4.
d4 {[%clk 0:03:02.4]} 4... Bd6 {[%clk 0:03:00.4]} 5. c4 {[%clk 0:03:01.9]} 5...
Nf6 {[%clk 0:02:58.3]} 6. Nc3 {[%clk 0:03:02]} 6... c6 {[%clk 0:02:57.6]} 7. Bd3
{[%clk 0:03:01.4]} 7... dxc4 {[%clk 0:02:56.6]} 8. Bxc4 {[%clk 0:03:02.3]} 8...
O-O {[%clk 0:02:56.6]} 9. O-O {[%clk 0:03:02.4]} 9... Nbd7 {[%clk 0:02:46.4]}
10. Bb3 {[%clk 0:03:02.3]} 10... h6 {[%clk 0:02:40.2]} 11. Qd3 {[%clk
0:02:55.1]} 11... Kh8 {[%clk 0:02:30.9]} 12. Re1 {[%clk 0:02:47.3]} 12... Nb6
{[%clk 0:02:28.5]} 13. Ne5 {[%clk 0:02:45.7]} 13... Bxe5 {[%clk 0:02:27.6]} 14.
Rxe5 {[%clk 0:02:44.6]} 14... Nbd5 {[%clk 0:02:18.6]} 15. Nxd5 {[%clk
0:02:25.5]} 15... Nxd5 {[%clk 0:02:10.9]} 16. Bxd5 {[%clk 0:02:18.7]} 16... cxd5
{[%clk 0:02:10.7]} 17. Bf4 {[%clk 0:02:18.7]} 17... f6 {[%clk 0:02:06.6]} 18.
Re2 {[%clk 0:02:11.5]} 18... Re8 {[%clk 0:02:01.2]} 19. Rae1 {[%clk 0:02:05.6]}
19... Rxe2 {[%clk 0:02:00.8]} 20. Qxe2 {[%clk 0:02:04.7]} 20... Bf5 {[%clk
0:01:57.9]} 21. Qe7 {[%clk 0:01:58.4]} 21... Qb6 {[%clk 0:01:40.1]} 22. Qc5
{[%clk 0:01:25.7]} 22... Qxb2 {[%clk 0:01:24.8]} 23. Qxd5 {[%clk 0:01:17.9]}
23... Bg6 {[%clk 0:01:13.9]} 24. h4 {[%clk 0:01:10.3]} 24... Qb4 {[%clk
0:00:57.3]} 25. Re3 {[%clk 0:00:59.9]} 25... Qb1+ {[%clk 0:00:48.6]} 26. Kh2
{[%clk 0:00:57.8]} 26... Qf5 {[%clk 0:00:48.4]} 27. Qxf5 {[%clk 0:00:41]} 27...
Bxf5 {[%clk 0:00:49.3]} 28. Re7 {[%clk 0:00:40.3]} 28... b5 {[%clk 0:00:49.3]}
29. d5 {[%clk 0:00:36.8]} 29... Kg8 {[%clk 0:00:37.7]} 30. d6 {[%clk 0:00:36.3]}
30... Kf8 {[%clk 0:00:32.7]} 31. Rb7 {[%clk 0:00:34.6]} 31... a6 {[%clk
0:00:32.2]} 32. Be3 {[%clk 0:00:20.6]} 32... Rd8 {[%clk 0:00:27.4]} 33. Bc5
{[%clk 0:00:18.7]} 33... Rd7 {[%clk 0:00:26.1]} 34. Rxd7 {[%clk 0:00:15.3]}
34... Bxd7 {[%clk 0:00:25.5]} 35. a3 {[%clk 0:00:15]} 35... Kf7 {[%clk
0:00:25.1]} 36. Kg3 {[%clk 0:00:15.3]} 36... Ke6 {[%clk 0:00:25.6]} 37. Kf4
{[%clk 0:00:15.4]} 37... Kd5 {[%clk 0:00:25.9]} 38. Bb4 {[%clk 0:00:15.6]} 38...
g5+ {[%clk 0:00:19.8]} 39. hxg5 {[%clk 0:00:15.4]} 39... hxg5+ {[%clk
0:00:19.8]} 40. Ke3 {[%clk 0:00:15.5]} 40... Kc4 {[%clk 0:00:20]} 41. g3 {[%clk
0:00:15]} 41... f5 {[%clk 0:00:17.2]} 42. f4 {[%clk 0:00:14.6]} 42... g4 {[%clk
0:00:17.4]} 43. Kd2 {[%clk 0:00:14.6]} 43... Kb3 {[%clk 0:00:17.3]} 44. Kd3
{[%clk 0:00:12.4]} 44... a5 {[%clk 0:00:14.2]} 45. Bxa5 {[%clk 0:00:12.1]} 45...
Ka4 {[%clk 0:00:14.6]} 46. Bb4 {[%clk 0:00:11.6]} 46... Kb3 {[%clk 0:00:14.9]}
47. Ke3 {[%clk 0:00:11.8]} 47... Kc4 {[%clk 0:00:14.7]} 48. Kf2 {[%clk
0:00:11.9]} 48... Bc6 {[%clk 0:00:14.9]} 49. Ke3 {[%clk 0:00:12]} 49... Bd7
{[%clk 0:00:15]} 50. Kf2 {[%clk 0:00:12.2]} 50... Bc6 {[%clk 0:00:15.3]} 51. Ke3
{[%clk 0:00:12.4]} 51... Bd7 {[%clk 0:00:15.7]} 1/2-1/2

[Event "*** Titled Tuesday Blitz"]
[Site "Chess.com"]
[Date "2020.05.19"]
[Round "10"]
[White "hypert"]
[Black "IMinTheWings"]
[Result "0-1"]
[WhiteElo "2356"]
[BlackElo "2255"]
[TimeControl "180+1"]
[EndTime "13:57:21 PDT"]
[Termination "IMinTheWings won by checkmate"]

1. e4 {[%clk 0:03:00.9]} 1... e6 {[%clk 0:02:57.9]} 2. d4 {[%clk 0:02:59.9]}
2... d5 {[%clk 0:02:58.2]} 3. Nc3 {[%clk 0:03:00.5]} 3... Nf6 {[%clk 0:02:58.1]}
4. e5 {[%clk 0:03:00.2]} 4... Nfd7 {[%clk 0:02:58.5]} 5. f4 {[%clk 0:03:00.8]}
5... c5 {[%clk 0:02:57.6]} 6. Nf3 {[%clk 0:03:01.4]} 6... Nc6 {[%clk 0:02:57.4]}
7. Be3 {[%clk 0:03:02]} 7... a6 {[%clk 0:02:57.5]} 8. a3 {[%clk 0:02:58.5]} 8...
b5 {[%clk 0:02:57.7]} 9. Qd2 {[%clk 0:02:57.6]} 9... Qa5 {[%clk 0:02:53.5]} 10.
Ra2 {[%clk 0:02:57.3]} 10... Qb6 {[%clk 0:02:53.2]} 11. Qf2 {[%clk 0:02:56.3]}
11... cxd4 {[%clk 0:02:49.4]} 12. Nxd4 {[%clk 0:02:55.3]} 12... Bc5 {[%clk
0:02:49.4]} 13. Nce2 {[%clk 0:02:50]} 13... b4 {[%clk 0:02:47.6]} 14. axb4
{[%clk 0:02:41.8]} 14... Nxb4 {[%clk 0:02:47.8]} 15. Ra1 {[%clk 0:02:38.5]}
15... f6 {[%clk 0:02:43.8]} 16. Kd2 {[%clk 0:02:28.9]} 16... fxe5 {[%clk
0:02:39.9]} 17. fxe5 {[%clk 0:02:27.5]} 17... Nxe5 {[%clk 0:02:30.7]} 18. Kc1
{[%clk 0:01:27.9]} 18... Nc4 {[%clk 0:02:23.5]} 19. b3 {[%clk 0:00:58.1]} 19...
Ne5 {[%clk 0:02:16.7]} 20. Qg3 {[%clk 0:00:47.6]} 20... Ng6 {[%clk 0:02:14.1]}
21. c3 {[%clk 0:00:34.6]} 21... Nd3+ {[%clk 0:01:58.8]} 22. Kc2 {[%clk
0:00:34.5]} 22... Nde5 {[%clk 0:01:55.6]} 23. b4 {[%clk 0:00:34.2]} 23... Be7
{[%clk 0:01:46.3]} 24. Nf5 {[%clk 0:00:29.8]} 24... Qc7 {[%clk 0:01:44.3]} 25.
Nxe7 {[%clk 0:00:28]} 25... Qxe7 {[%clk 0:01:43.8]} 26. Bd4 {[%clk 0:00:27.8]}
26... Nd7 {[%clk 0:01:41.3]} 27. Nf4 {[%clk 0:00:27.5]} 27... Nxf4 {[%clk
0:01:38.9]} 28. Qxf4 {[%clk 0:00:27.7]} 28... e5 {[%clk 0:01:39.2]} 29. Qg3
{[%clk 0:00:24.2]} 29... O-O {[%clk 0:01:37]} 30. Re1 {[%clk 0:00:24]} 30... e4
{[%clk 0:01:31.6]} 31. Be2 {[%clk 0:00:22.4]} 31... a5 {[%clk 0:01:28.7]} 32. b5
{[%clk 0:00:21.6]} 32... a4 {[%clk 0:01:11]} 33. h4 {[%clk 0:00:21.4]} 33... a3
{[%clk 0:01:11.1]} 34. h5 {[%clk 0:00:20.8]} 34... a2 {[%clk 0:01:09.5]} 35. h6
{[%clk 0:00:21.2]} 35... g6 {[%clk 0:01:09]} 36. Ra1 {[%clk 0:00:21.3]} 36...
Nc5 {[%clk 0:00:58.2]} 37. Qe5 {[%clk 0:00:19.8]} 37... Qxe5 {[%clk 0:00:57.7]}
38. Bxe5 {[%clk 0:00:20.7]} 38... Rf2 {[%clk 0:00:54.1]} 39. Rhe1 {[%clk
0:00:21.3]} 39... Nd3 {[%clk 0:00:53.8]} 40. Kd2 {[%clk 0:00:21.2]} 40... Nxe1
{[%clk 0:00:52.9]} 41. Kxe1 {[%clk 0:00:21.3]} 41... Rxg2 {[%clk 0:00:52]} 42.
Kf1 {[%clk 0:00:21.3]} 42... Rg5 {[%clk 0:00:49]} 43. Bd4 {[%clk 0:00:19.5]}
43... Bh3+ {[%clk 0:00:48.2]} 44. Ke1 {[%clk 0:00:19.3]} 44... Rh5 {[%clk
0:00:44]} 45. Bxh5 {[%clk 0:00:18]} 45... gxh5 {[%clk 0:00:44.9]} 46. b6 {[%clk
0:00:18.6]} 46... Bc8 {[%clk 0:00:43.6]} 47. Kf2 {[%clk 0:00:18.3]} 47... Kf7
{[%clk 0:00:43.4]} 48. Kg3 {[%clk 0:00:18.4]} 48... Kg6 {[%clk 0:00:43.7]} 49.
Kh4 {[%clk 0:00:18.4]} 49... Kxh6 {[%clk 0:00:43.7]} 50. c4 {[%clk 0:00:18.9]}
50... dxc4 {[%clk 0:00:41.6]} 51. Rg1 {[%clk 0:00:19.4]} 51... Bg4 {[%clk
0:00:41.8]} 52. Ba1 {[%clk 0:00:17.9]} 52... Rb8 {[%clk 0:00:41.2]} 53. Bd4
{[%clk 0:00:17.5]} 53... Kg6 {[%clk 0:00:39.4]} 54. Rf1 {[%clk 0:00:17.1]} 54...
Bf3 {[%clk 0:00:37.3]} 55. Rg1+ {[%clk 0:00:17.2]} 55... Bg4 {[%clk 0:00:37.8]}
56. Rf1 {[%clk 0:00:17.5]} 56... c3 {[%clk 0:00:37.9]} 57. Bxc3 {[%clk
0:00:16.2]} 57... Rxb6 {[%clk 0:00:37.5]} 58. Re1 {[%clk 0:00:14.6]} 58... Rb3
{[%clk 0:00:37.5]} 59. Ba1 {[%clk 0:00:13.6]} 59... Rh3# {[%clk 0:00:37.6]} 0-1

[Event "*** Titled Tuesday Blitz"]
[Site "Chess.com"]
[Date "2020.05.19"]
[Round "10"]
[White "XDPS"]
[Black "jlandaw"]
[Result "0-1"]
[WhiteElo "2650"]
[BlackElo "2495"]
[TimeControl "180+1"]
[EndTime "13:57:22 PDT"]
[Termination "jlandaw won on time"]

1. Nf3 {[%clk 0:02:56.7]} 1... Nf6 {[%clk 0:02:59.2]} 2. b3 {[%clk 0:02:56.1]}
2... d5 {[%clk 0:02:58.2]} 3. Bb2 {[%clk 0:02:55.2]} 3... Bf5 {[%clk 0:02:58.2]}
4. g3 {[%clk 0:02:54.5]} 4... Nc6 {[%clk 0:02:58.1]} 5. Bg2 {[%clk 0:02:53.5]}
5... h6 {[%clk 0:02:58.5]} 6. O-O {[%clk 0:02:52.9]} 6... e6 {[%clk 0:02:59]} 7.
d3 {[%clk 0:02:52.2]} 7... Be7 {[%clk 0:02:58.8]} 8. Nbd2 {[%clk 0:02:51.2]}
8... Bh7 {[%clk 0:02:58.9]} 9. Ne5 {[%clk 0:02:44.1]} 9... Nxe5 {[%clk
0:02:55.9]} 10. Bxe5 {[%clk 0:02:45]} 10... O-O {[%clk 0:02:55.7]} 11. e4 {[%clk
0:02:44.4]} 11... d4 {[%clk 0:02:41.9]} 12. Bxf6 {[%clk 0:02:29.1]} 12... Bxf6
{[%clk 0:02:41.3]} 13. f4 {[%clk 0:02:29.7]} 13... e5 {[%clk 0:02:36]} 14. Kh1
{[%clk 0:02:00]} 14... c6 {[%clk 0:02:23.8]} 15. Qh5 {[%clk 0:01:45.1]} 15...
exf4 {[%clk 0:02:14.4]} 16. gxf4 {[%clk 0:01:45.2]} 16... Be7 {[%clk 0:02:05.5]}
17. Bf3 {[%clk 0:01:17.4]} 17... Bb4 {[%clk 0:01:55.7]} 18. Nc4 {[%clk
0:01:14.9]} 18... Qf6 {[%clk 0:01:52.7]} 19. Qg4 {[%clk 0:00:58.6]} 19... Kh8
{[%clk 0:01:49.2]} 20. e5 {[%clk 0:00:58.2]} 20... Qf5 {[%clk 0:01:46.9]} 21.
Qg3 {[%clk 0:00:58.1]} 21... Rad8 {[%clk 0:01:41]} 22. Be4 {[%clk 0:00:56.5]}
22... Qh5 {[%clk 0:01:40.6]} 23. Rg1 {[%clk 0:00:55.3]} 23... Rg8 {[%clk
0:01:40.3]} 24. Bf3 {[%clk 0:00:48.4]} 24... Qf5 {[%clk 0:01:37.7]} 25. Raf1
{[%clk 0:00:48.6]} 25... b5 {[%clk 0:01:35.9]} 26. Nb2 {[%clk 0:00:46.9]} 26...
c5 {[%clk 0:01:31.2]} 27. Nd1 {[%clk 0:00:46.1]} 27... Bd2 {[%clk 0:01:29.1]}
28. Be4 {[%clk 0:00:45.6]} 28... Qh5 {[%clk 0:01:28.2]} 29. Nf2 {[%clk
0:00:44.6]} 29... Be3 {[%clk 0:01:26.4]} 30. Bf3 {[%clk 0:00:40.7]} 30... Qf5
{[%clk 0:01:22]} 31. Nh3 {[%clk 0:00:26.6]} 31... Rde8 {[%clk 0:00:56.2]} 32.
Rg2 {[%clk 0:00:20.8]} 32... Qg6 {[%clk 0:00:54.3]} 33. Qh4 {[%clk 0:00:20.6]}
33... Qe6 {[%clk 0:00:48.4]} 34. Bg4 {[%clk 0:00:20.5]} 34... Qc6 {[%clk
0:00:42]} 35. Bh5 {[%clk 0:00:20.5]} 35... Ref8 {[%clk 0:00:21.9]} 36. Bf3
{[%clk 0:00:19.8]} 36... Qe6 {[%clk 0:00:21.4]} 37. Be4 {[%clk 0:00:19]} 37...
Bxe4 {[%clk 0:00:16.9]} 38. dxe4 {[%clk 0:00:19.9]} 38... Qc6 {[%clk 0:00:17.4]}
39. f5 {[%clk 0:00:19.6]} 39... g5 {[%clk 0:00:12.8]} 40. Qh5 {[%clk 0:00:18]}
40... Kg7 {[%clk 0:00:11.1]} 41. f6+ {[%clk 0:00:17.4]} 41... Kh7 {[%clk
0:00:11.7]} 42. Qg4 {[%clk 0:00:16.5]} 42... Rg6 {[%clk 0:00:11.5]} 43. Rf5
{[%clk 0:00:15.6]} 43... Qe6 {[%clk 0:00:11.5]} 44. Ng1 {[%clk 0:00:15.4]} 44...
c4 {[%clk 0:00:11.5]} 45. Nf3 {[%clk 0:00:15.4]} 45... d3 {[%clk 0:00:12]} 46.
cxd3 {[%clk 0:00:15.7]} 46... cxd3 {[%clk 0:00:12.9]} 47. h3 {[%clk 0:00:13.8]}
47... Rc8 {[%clk 0:00:13]} 48. Kh2 {[%clk 0:00:13.6]} 48... Rc2 {[%clk
0:00:13.1]} 49. Qg3 {[%clk 0:00:12.6]} 49... Bf4 {[%clk 0:00:12.5]} 50. Rxf4
{[%clk 0:00:12]} 50... gxf4 {[%clk 0:00:13.4]} 0-1

[Event "*** Titled Tuesday Blitz"]
[Site "Chess.com"]
[Date "2020.05.19"]
[Round "10"]
[White "diablanni"]
[Black "PetrolulSah"]
[Result "1-0"]
[WhiteElo "2344"]
[BlackElo "2203"]
[TimeControl "180+1"]
[EndTime "13:57:22 PDT"]
[Termination "diablanni won on time"]

1. e4 {[%clk 0:02:59.2]} 1... e5 {[%clk 0:02:59.5]} 2. Nf3 {[%clk 0:02:58.8]}
2... Nc6 {[%clk 0:02:59.2]} 3. d4 {[%clk 0:02:57.9]} 3... exd4 {[%clk
0:02:58.8]} 4. Nxd4 {[%clk 0:02:57.1]} 4... Nf6 {[%clk 0:02:57.9]} 5. Nxc6
{[%clk 0:02:56.3]} 5... bxc6 {[%clk 0:02:55.3]} 6. e5 {[%clk 0:02:56.6]} 6...
Qe7 {[%clk 0:02:55.2]} 7. Qe2 {[%clk 0:02:56.6]} 7... Nd5 {[%clk 0:02:53.6]} 8.
c4 {[%clk 0:02:57]} 8... Nb6 {[%clk 0:02:53]} 9. Nc3 {[%clk 0:02:56.3]} 9... Qe6
{[%clk 0:02:50.7]} 10. Qe4 {[%clk 0:02:54.6]} 10... g6 {[%clk 0:02:48.6]} 11. f4
{[%clk 0:02:03.8]} 11... Bg7 {[%clk 0:02:43.4]} 12. c5 {[%clk 0:01:54.6]} 12...
Nd5 {[%clk 0:02:40.1]} 13. Bc4 {[%clk 0:01:53]} 13... Nxc3 {[%clk 0:02:08.9]}
14. bxc3 {[%clk 0:01:52.7]} 14... Qe7 {[%clk 0:02:08.4]} 15. Ba3 {[%clk
0:01:50.9]} 15... O-O {[%clk 0:01:52.1]} 16. O-O {[%clk 0:01:50]} 16... a5
{[%clk 0:01:50]} 17. Rf3 {[%clk 0:01:38.1]} 17... Ba6 {[%clk 0:01:44.9]} 18. Bb3
{[%clk 0:01:36.6]} 18... Rfe8 {[%clk 0:01:30.8]} 19. Re1 {[%clk 0:01:34.5]}
19... Bb5 {[%clk 0:01:25.7]} 20. f5 {[%clk 0:00:54.3]} 20... a4 {[%clk 0:01:20]}
21. fxg6 {[%clk 0:00:38.5]} 21... axb3 {[%clk 0:01:17.9]} 22. gxf7+ {[%clk
0:00:38.3]} 22... Kh8 {[%clk 0:01:09.6]} 23. fxe8=Q+ {[%clk 0:00:34.9]} 23...
Qxe8 {[%clk 0:01:00.3]} 24. Rh3 {[%clk 0:00:34.3]} 24... Qg8 {[%clk 0:00:55.3]}
25. Qb4 {[%clk 0:00:24.1]} 25... bxa2 {[%clk 0:00:50.7]} 26. Qb2 {[%clk
0:00:20.9]} 26... Bc4 {[%clk 0:00:32.3]} 27. Rg3 {[%clk 0:00:19.8]} 27... Rb8
{[%clk 0:00:29.7]} 28. Bb4 {[%clk 0:00:19.1]} 28... Qd5 {[%clk 0:00:25.5]} 29.
Qc1 {[%clk 0:00:15.4]} 29... a1=Q {[%clk 0:00:17.9]} 30. Qxa1 {[%clk 0:00:15]}
30... Bxe5 {[%clk 0:00:18.4]} 31. Rge3 {[%clk 0:00:12.5]} 31... Rxb4 {[%clk
0:00:14.5]} 32. Rxe5 {[%clk 0:00:11.7]} 32... Qxg2+ {[%clk 0:00:04.8]} 33. Kxg2
{[%clk 0:00:11.4]} 33... Rb3 {[%clk 0:00:04]} 34. Qa8+ {[%clk 0:00:10.8]} 34...
Kg7 {[%clk 0:00:02.1]} 35. Re7+ {[%clk 0:00:10.7]} 35... Kf6 {[%clk 0:00:01.8]}
36. Qf8+ {[%clk 0:00:10.9]} 36... Kg6 {[%clk 0:00:01.6]} 37. R1e3 {[%clk
0:00:07.5]} 37... Bd5+ {[%clk 0:00:02.5]} 38. Kg3 {[%clk 0:00:07.5]} 38... Kg5
{[%clk 0:00:02.3]} 39. Qf4+ {[%clk 0:00:07.4]} 39... Kg6 {[%clk 0:00:02.2]} 40.
Qg4+ {[%clk 0:00:07.5]} 40... Kf6 {[%clk 0:00:02.1]} 41. Qh4+ {[%clk 0:00:07.9]}
41... Kf5 {[%clk 0:00:01.7]} 42. Qxh7+ {[%clk 0:00:08]} 42... Kf6 {[%clk
0:00:01.8]} 43. Qg7+ {[%clk 0:00:08.1]} 43... Kf5 {[%clk 0:00:02.1]} 44. Rf7+
{[%clk 0:00:08.2]} 1-0